fUST/lending_fUST_20240830
["ID","MTS","AMOUNT","RATE_DAILY","PERIOD"]
[336554030,1724952650538,-500.0,0.0002,2]
[336554032,1724952650549,-500.0,0.0002,2]
[336554034,1724952650559,-500.0,0.0002,2]
[336554036,1724952650570,-500.0,0.0002,2]
[336554038,1724952650581,-151.0,0.0002,2]
[336554041,1724952650592,-501.8001688,0.0002,2]
[336554043,1724952650603,-151.0,0.0002,2]
[336554045,1724952650614,-500.0,0.0002,2]
[336554047,1724952650624,-500.0,0.0002,2]
[336554049,1724952650634,-500.0,0.0002,2]
[336554051,1724952650643,-500.0,0.0002,2]
[336554053,1724952650653,-500.0,0.0002,2]
[336554055,1724952650663,-500.0,0.0002,2]
[336554057,1724952650673,-500.0,0.0002,2]
[336554059,1724952650685,-500.0,0.0002,2]
[336554061,1724952650694,-6827.52,0.0002,2]
[336554063,1724952650704,-500.0,0.0002,2]
[336554065,1724952650713,-500.0,0.0002,2]
[336554067,1724952650723,-302.33493269,0.0002,2]
[336554070,1724952650733,-196.867362,0.0002,2]
[336554072,1724952650742,-1197.44,0.0002,2]
[336554074,1724952650752,-500.0,0.0002,2]
[336554076,1724952650763,-500.0,0.0002,2]
[336554078,1724952650772,-1850.92,0.0002,2]
[336554080,1724952650782,-2427.73,0.0002,2]
[336554082,1724952650791,-500.0,0.0002,2]
[336554084,1724952650800,-1397.11,0.0002,2]
[336554086,1724952650809,-500.0,0.0002,2]
[336554088,1724952650822,-1150.01,0.0002,2]
[336554090,1724952650831,-500.0,0.0002,2]
[336554092,1724952650841,-500.0,0.0002,2]
[336554093,1724952650852,-500.0,0.0002,2]
[336554096,1724952650863,-926.01,0.0002,2]
[336554099,1724952650882,-500.0,0.0002,2]
[336554101,1724952650894,-277.45589,0.0002,2]
[336554103,1724952650905,-500.0,0.0002,2]
[336554105,1724952650915,-500.0,0.0002,2]
[336554107,1724952650925,-500.0,0.0002,2]
[336554109,1724952650935,-500.0,0.0002,2]
[336554111,1724952650946,-277.45589,0.0002,2]
[336554113,1724952650956,-151.0,0.0002,2]
[336554115,1724952650966,-3752.69,0.0002,2]
[336554117,1724952650975,-500.0,0.0002,2]
[336554119,1724952650985,-500.0,0.0002,2]
[336554121,1724952650996,-500.0,0.0002,2]
[336554137,1724952651136,-55.37602326,0.0002,2]
[336554159,1724952651335,-444.62397674,0.0002,2]
[336554162,1724952651350,-1226.84,0.0002,2]
[336554164,1724952651362,-647.56242365,0.0002,2]
[336554166,1724952651372,-192.8634845,0.0002,2]
[336554168,1724952651382,-500.0,0.0002,2]
[336554170,1724952651391,-500.0,0.0002,2]
[336554172,1724952651402,-1379.94,0.0002,2]
[336554174,1724952651417,-500.0,0.0002,2]
[336554176,1724952651427,-500.0,0.0002,2]
[336554179,1724952651439,-500.0,0.0002,2]
[336554181,1724952651451,-500.0,0.0002,2]
[336554183,1724952651462,-151.0,0.0002,2]
[336554185,1724952651472,-500.0,0.0002,2]
[336554187,1724952651482,-500.0,0.0002,2]
[336554189,1724952651494,-500.0,0.0002,2]
[336554192,1724952651507,-1041.47,0.0002,2]
[336554194,1724952651519,-500.0,0.0002,2]
[336554196,1724952651528,-500.0,0.0002,2]
[336554198,1724952651540,-500.0,0.0002,2]
[336554200,1724952651550,-941.03,0.0002,2]
[336554202,1724952651559,-1814.12,0.0002,2]
[336554204,1724952651569,-500.0,0.0002,2]
[336554206,1724952651579,-151.0,0.0002,2]
[336554208,1724952651589,-1236.89,0.0002,2]
[336554210,1724952651601,-500.0,0.0002,2]
[336554212,1724952651611,-500.0,0.0002,2]
[336554214,1724952651623,-500.0,0.0002,2]
[336554216,1724952651633,-500.0,0.0002,2]
[336554218,1724952651644,-500.0,0.0002,2]
[336554220,1724952651654,-500.0,0.0002,2]
[336554222,1724952651664,-500.0,0.0002,2]
[336554224,1724952651673,-500.0,0.0002,2]
[336554226,1724952651683,-974.98,0.0002,2]
[336554228,1724952651693,-394.61891575,0.0002,2]
[336554230,1724952651703,-500.0,0.0002,2]
[336554232,1724952651713,-151.0,0.0002,2]
[336554234,1724952651722,-500.0,0.0002,2]
[336554236,1724952651732,-302.30477158,0.0002,2]
[336554238,1724952651742,-500.0,0.0002,2]
[336554240,1724952651753,-500.0,0.0002,2]
[336554242,1724952651762,-500.0,0.0002,2]
[336554244,1724952651772,-500.0,0.0002,2]
[336554246,1724952651782,-500.0,0.0002,2]
[336554248,1724952651791,-500.0,0.0002,2]
[336554250,1724952651801,-500.0,0.0002,2]
[336554252,1724952651812,-500.0,0.0002,2]
[336554254,1724952651826,-500.0,0.0002,2]
[336554256,1724952651838,-151.0,0.0002,2]
[336554258,1724952651848,-504.07803773,0.0002,2]
[336554260,1724952651863,-328.067773,0.0002,2]
[336554262,1724952651874,-500.0,0.0002,2]
[336554265,1724952651884,-151.0,0.0002,2]
[336554267,1724952651894,-524.17,0.0002,2]
[336554269,1724952651904,-500.0,0.0002,2]
[336554271,1724952651915,-328.067773,0.0002,2]
[336554273,1724952651924,-507.19,0.0002,2]
[336554274,1724952651934,-500.0,0.0002,2]
[336554276,1724952651944,-500.0,0.0002,2]
[336554278,1724952651954,-500.0,0.0002,2]
[336554280,1724952651964,-500.0,0.0002,2]
[336554282,1724952651974,-1015.18,0.0002,2]
[336554284,1724952651983,-500.0,0.0002,2]
[336554286,1724952651994,-500.0,0.0002,2]
[336554288,1724952652003,-2068.23,0.0002,2]
[336554290,1724952652013,-17466.73,0.0002,2]
[336554292,1724952652023,-500.0,0.0002,2]
[336554294,1724952652032,-500.0,0.0002,2]
[336554296,1724952652042,-151.0,0.0002,2]
[336554299,1724952652056,-500.0,0.0002,2]
[336554301,1724952652066,-598.75,0.0002,2]
[336554303,1724952652077,-500.0,0.0002,2]
[336554305,1724952652087,-500.0,0.0002,2]
[336554307,1724952652097,-157.75522986,0.0002,2]
[336554309,1724952652109,-500.0,0.0002,2]
[336554311,1724952652119,-500.0,0.0002,2]
[336554313,1724952652129,-500.0,0.0002,2]
[336554315,1724952652139,-990.14,0.0002,2]
[336554317,1724952652149,-500.0,0.0002,2]
[336554319,1724952652159,-500.0,0.0002,2]
[336554321,1724952652168,-500.0,0.0002,2]
[336554323,1724952652178,-500.0,0.0002,2]
[336554325,1724952652189,-500.0,0.0002,2]
[336554327,1724952652202,-500.0,0.0002,2]
[336554329,1724952652212,-465.86867073,0.0002,2]
[336554331,1724952652222,-500.0,0.0002,2]
[336554334,1724952652232,-2201.12,0.0002,2]
[336554336,1724952652242,-246.011452,0.0002,2]
[336554338,1724952652251,-2582.92365636,0.00020124,2]
[336554340,1724952652263,-500.14042221,0.00020135,2]
[336554342,1724952652273,-302.33493269,0.000202,2]
[336554344,1724952652283,-302.30477158,0.000202,2]
[336554346,1724952652293,-5836.44874904,0.00020263,2]
[336554348,1724952652304,-1443.35,0.00020272,2]
[336554350,1724952652314,-1443.35,0.00020272,2]
[336554352,1724952652326,-150.0,0.00020273,2]
[336554355,1724952652338,-312.4407778,0.00020273,2]
[336554357,1724952652348,-691.49,0.00020273,2]
[336554359,1724952652361,-1084.28,0.00020273,2]
[336554361,1724952652371,-500.0,0.00020273,2]
[336554363,1724952652382,-500.0,0.00020273,2]
[336554365,1724952652392,-500.0,0.00020273,2]
[336554367,1724952652402,-500.0,0.00020273,2]
[336554369,1724952652412,-524.2,0.00020273,2]
[336554371,1724952652421,-500.0,0.00020273,2]
[336554373,1724952652432,-502.15008898,0.00020273,2]
[336554375,1724952652443,-500.0,0.00020273,2]
[336554377,1724952652455,-500.0,0.00020273,2]
[336554379,1724952652466,-500.0,0.00020273,2]
[336554382,1724952652477,-500.0,0.00020273,2]
[336554384,1724952652489,-190.76,0.00020273,2]
[336554386,1724952652500,-500.0,0.00020273,2]
[336554388,1724952652511,-500.0,0.00020273,2]
[336554390,1724952652523,-500.0,0.00020273,2]
[336554392,1724952652534,-500.0,0.00020273,2]
[336554394,1724952652543,-500.0,0.00020273,2]
[336554396,1724952652553,-500.0,0.00020273,2]
[336554398,1724952652565,-441.05754446,0.00020273,2]
[336554400,1724952652575,-500.0,0.00020273,2]
[336554402,1724952652584,-473.0,0.00020273,2]
[336554405,1724952652595,-500.0,0.00020273,2]
[336554407,1724952652607,-500.0,0.00020273,2]
[336554409,1724952652616,-549.13,0.00020273,2]
[336554411,1724952652628,-500.0,0.00020273,2]
[336554413,1724952652640,-500.0,0.00020273,2]
[336554415,1724952652650,-500.0,0.00020273,2]
[336554417,1724952652661,-500.0,0.00020273,2]
[336554419,1724952652672,-500.0,0.00020273,2]
[336554422,1724952652683,-500.0,0.00020273,2]
[336554424,1724952652694,-224.386314,0.00020273,2]
[336554426,1724952652703,-500.0,0.00020273,2]
[336554428,1724952652713,-500.0,0.00020273,2]
[336554430,1724952652722,-500.0,0.00020273,2]
[336554432,1724952652733,-500.0,0.00020273,2]
[336554434,1724952652742,-500.0,0.00020273,2]
[336554436,1724952652752,-500.0,0.00020273,2]
[336554438,1724952652764,-151.0,0.00020273,2]
[336554440,1724952652774,-500.0,0.00020273,2]
[336554442,1724952652783,-500.0,0.00020273,2]
[336554444,1724952652793,-4000.0,0.00020273,2]
[336554446,1724952652804,-618.54,0.00020273,2]
[336554449,1724952652818,-500.0,0.00020273,2]
[336554450,1724952652830,-500.0,0.00020273,2]
[336554452,1724952652840,-500.0,0.00020273,2]
[336554455,1724952652852,-6827.52,0.00020273,2]
[336554457,1724952652864,-500.0,0.00020273,2]
[336554459,1724952652877,-500.0,0.00020273,2]
[336554461,1724952652887,-1197.44,0.00020273,2]
[336554463,1724952652901,-215.11111768,0.00020273,2]
[336554465,1724952652912,-502.92912567,0.00020273,2]
[336554467,1724952652921,-1850.92,0.00020273,2]
[336554469,1724952652931,-2427.73,0.00020273,2]
[336554471,1724952652941,-500.0,0.00020273,2]
[336554474,1724952652961,-1397.11,0.00020273,2]
[336554476,1724952652971,-500.0,0.00020273,2]
[336554478,1724952652980,-1150.01,0.00020273,2]
[336554480,1724952652990,-500.0,0.00020273,2]
[336554482,1724952653000,-500.0,0.00020273,2]
[336554484,1724952653010,-500.0,0.00020273,2]
[336554486,1724952653020,-926.01,0.00020273,2]
[336554488,1724952653029,-500.0,0.00020273,2]
[336554490,1724952653040,-500.0,0.00020273,2]
[336554492,1724952653050,-500.0,0.00020273,2]
[336554494,1724952653059,-500.0,0.00020273,2]
[336554496,1724952653070,-500.0,0.00020273,2]
[336554498,1724952653079,-217.889343,0.00020273,2]
[336554500,1724952653089,-3752.69,0.00020273,2]
[336554502,1724952653098,-633.78407289,0.00020273,2]
[336554504,1724952653113,-553.11756495,0.00020273,2]
[336554506,1724952653123,-500.0,0.00020273,2]
[336554508,1724952653133,-500.0,0.00020273,2]
[336554510,1724952653143,-1226.84,0.00020273,2]
[336554512,1724952653153,-500.0,0.00020273,2]
[336554514,1724952653162,-500.0,0.00020273,2]
[336554516,1724952653171,-1379.94,0.00020273,2]
[336554518,1724952653181,-500.0,0.00020273,2]
[336554520,1724952653192,-500.0,0.00020273,2]
[336554522,1724952653202,-500.0,0.00020273,2]
[336554524,1724952653212,-158.23966716,0.00020273,2]
[336554526,1724952653223,-151.0,0.00020273,2]
[336554528,1724952653233,-500.0,0.00020273,2]
[336554530,1724952653242,-491.36185069,0.00020273,2]
[336554532,1724952653252,-500.0,0.00020273,2]
[336554534,1724952653261,-1041.47,0.00020273,2]
[336554536,1724952653271,-500.0,0.00020273,2]
[336554538,1724952653280,-500.0,0.00020273,2]
[336554540,1724952653289,-207.79122592,0.00020273,2]
[336554542,1724952653299,-941.03,0.00020273,2]
[336554544,1724952653310,-1814.12,0.00020273,2]
[336554546,1724952653319,-500.0,0.00020273,2]
[336554548,1724952653329,-151.0,0.00020273,2]
[336554550,1724952653338,-1236.89,0.00020273,2]
[336554551,1724952653349,-500.0,0.00020273,2]
[336554552,1724952653361,-500.0,0.00020273,2]
[336554553,1724952653371,-500.0,0.00020273,2]
[336554554,1724952653381,-500.0,0.00020273,2]
[336554555,1724952653393,-500.0,0.00020273,2]
[336554556,1724952653535,-500.0,0.00020273,2]
[336554557,1724952653546,-500.0,0.00020273,2]
[336554558,1724952653556,-500.0,0.00020273,2]
[336554559,1724952653566,-974.98,0.00020273,2]
[336554560,1724952653575,-500.0,0.00020273,2]
[336554561,1724952653585,-151.0,0.00020273,2]
[336554562,1724952653595,-500.0,0.00020273,2]
[336554563,1724952653607,-500.0,0.00020273,2]
[336554565,1724952653616,-500.0,0.00020273,2]
[336554567,1724952653627,-500.0,0.00020273,2]
[336554569,1724952653640,-500.0,0.00020273,2]
[336554572,1724952653651,-500.0,0.00020273,2]
[336554574,1724952653662,-500.0,0.00020273,2]
[336554576,1724952653672,-500.0,0.00020273,2]
[336554578,1724952653685,-151.0,0.00020273,2]
[336554580,1724952653695,-328.067773,0.00020273,2]
[336554583,1724952653707,-500.0,0.00020273,2]
[336554585,1724952653718,-151.325762,0.00020273,2]
[336554587,1724952653727,-524.17,0.00020273,2]
[336554589,1724952653736,-500.0,0.00020273,2]
[336554591,1724952653745,-328.067773,0.00020273,2]
[336554593,1724952653755,-507.19,0.00020273,2]
[336554595,1724952653764,-500.0,0.00020273,2]
[336554597,1724952653774,-500.0,0.00020273,2]
[336554599,1724952653783,-500.0,0.00020273,2]
[336554601,1724952653792,-500.0,0.00020273,2]
[336554603,1724952653802,-1015.18,0.00020273,2]
[336554605,1724952653812,-500.0,0.00020273,2]
[336554607,1724952653827,-500.0,0.00020273,2]
[336554609,1724952653837,-2068.23,0.00020273,2]
[336554611,1724952653847,-17466.73,0.00020273,2]
[336554614,1724952653859,-500.0,0.00020273,2]
[336554616,1724952653869,-500.0,0.00020273,2]
[336554618,1724952653880,-151.0,0.00020273,2]
[336554620,1724952653892,-600.22389927,0.00020273,2]
[336554622,1724952653902,-598.75,0.00020273,2]
[336554624,1724952653912,-500.0,0.00020273,2]
[336554626,1724952653922,-500.0,0.00020273,2]
[336554628,1724952653931,-500.0,0.00020273,2]
[336554630,1724952653941,-500.0,0.00020273,2]
[336554632,1724952653950,-500.0,0.00020273,2]
[336554634,1724952653960,-990.14,0.00020273,2]
[336554636,1724952653972,-500.0,0.00020273,2]
[336554638,1724952653983,-500.0,0.00020273,2]
[336554641,1724952653994,-500.0,0.00020273,2]
[336554643,1724952654004,-500.0,0.00020273,2]
[336554645,1724952654014,-500.0,0.00020273,2]
[336554647,1724952654025,-500.0,0.00020273,2]
[336554649,1724952654034,-500.0,0.00020273,2]
[336554651,1724952654044,-2201.12,0.00020273,2]
[336554653,1724952654054,-246.011452,0.00020273,2]
[336554655,1724952654063,-468.9179555,0.00020286,2]
[336554657,1724952654073,-2918.22437452,0.0002029,2]
[336554659,1724952654084,-4285.18,0.000203,2]
[336554661,1724952654094,-150.112233,0.000203,3]
[336554663,1724952654105,-1000.0,0.00020321,2]
[336554665,1724952654114,-1205.64,0.0002036,3]
[336554667,1724952654125,-602.82,0.0002036,3]
[336554669,1724952654134,-865.72,0.0002036,3]
[336554671,1724952654145,-721.42,0.0002036,3]
[336554674,1724952654156,-1443.35,0.00020368,2]
[336554676,1724952654167,-470.29,0.00020369,7]
[336554678,1724952654180,-500.0,0.00020369,7]
[336554680,1724952654191,-500.0,0.00020369,7]
[336554683,1724952654204,-500.0,0.00020369,7]
[336554685,1724952654216,-500.0,0.00020369,7]
[336554687,1724952654227,-500.0,0.00020369,7]
[336554689,1724952654237,-500.0,0.00020369,7]
[336554691,1724952654247,-500.0,0.00020369,7]
[336554693,1724952654258,-500.0,0.00020369,7]
[336554695,1724952654268,-500.0,0.00020369,7]
[336554697,1724952654278,-500.0,0.00020369,7]
[336554700,1724952654291,-500.0,0.00020369,7]
[336554702,1724952654301,-500.0,0.00020369,7]
[336554704,1724952654312,-500.0,0.00020369,7]
[336554706,1724952654324,-500.0,0.00020369,7]
[336554708,1724952654334,-500.0,0.00020369,7]
[336554710,1724952654344,-500.0,0.00020369,7]
[336554712,1724952654355,-500.0,0.00020369,7]
[336554715,1724952654365,-500.0,0.00020369,7]
[336554717,1724952654375,-500.0,0.00020369,7]
[336554719,1724952654387,-500.0,0.00020369,7]
[336554721,1724952654397,-500.0,0.00020369,7]
[336554723,1724952654406,-500.0,0.00020369,7]
[336554725,1724952654416,-500.0,0.00020369,7]
[336554727,1724952654426,-500.0,0.00020369,7]
[336554729,1724952654437,-575.41,0.00020369,7]
[336554731,1724952654446,-257.138475,0.00020369,2]
[336554734,1724952654457,-257.138475,0.00020369,2]
[336554736,1724952654469,-277.45589,0.00020369,2]
[336554738,1724952654480,-277.45589,0.00020369,2]
[336554740,1724952654489,-2487.89,0.000204,2]
[336554742,1724952654500,-302.33493269,0.000204,2]
[336554744,1724952654511,-302.30477158,0.000204,2]
[336554747,1724952654522,-153.0,0.00020493,2]
[336554749,1724952654533,-150.112233,0.000205,3]
[336554751,1724952654543,-600.0,0.00020514,2]
[336554753,1724952654554,-2918.22437452,0.00020537,2]
[336554755,1724952654563,-1939.7,0.00020538,3]
[336554757,1724952654573,-969.84,0.00020538,3]
[336554759,1724952654582,-484.92,0.00020538,3]
[336554761,1724952654591,-1443.35,0.00020546,2]
[336554763,1724952654601,-1443.35,0.00020546,2]
[336554765,1724952654610,-1443.35,0.00020546,2]
[336554767,1724952654620,-1443.35,0.00020546,2]
[336554769,1724952654631,-1443.52,0.00020546,2]
[336554771,1724952654641,-691.49,0.00020547,2]
[336554773,1724952654650,-1084.28,0.00020547,2]
[336554775,1724952654659,-500.08,0.00020547,2]
[336554777,1724952654669,-500.0,0.00020547,2]
[336554779,1724952654678,-431.71153225,0.00020547,2]
[336554781,1724952654688,-524.2,0.00020547,2]
[336554783,1724952654698,-500.0,0.00020547,2]
[336554785,1724952654707,-500.0,0.00020547,2]
[336554787,1724952654717,-500.0,0.00020547,2]
[336554789,1724952654727,-500.0,0.00020547,2]
[336554791,1724952654736,-306.0354611,0.00020547,2]
[336554793,1724952654745,-500.0,0.00020547,2]
[336554795,1724952654755,-500.0,0.00020547,2]
[336554797,1724952654764,-500.0,0.00020547,2]
[336554799,1724952654775,-500.0,0.00020547,2]
[336554801,1724952654784,-345.11,0.00020547,2]
[336554803,1724952654794,-500.0,0.00020547,2]
[336554805,1724952654803,-626.16,0.00020547,2]
[336554807,1724952654813,-500.0,0.00020547,2]
[336554809,1724952654827,-500.0,0.00020547,2]
[336554811,1724952654838,-331.56,0.00020547,2]
[336554813,1724952654848,-500.0,0.00020547,2]
[336554815,1724952654859,-6827.52,0.00020547,2]
[336554817,1724952654868,-500.0,0.00020547,2]
[336554819,1724952654878,-1197.44,0.00020547,2]
[336554821,1724952654887,-1850.92,0.00020547,2]
[336554822,1724952654898,-2427.73,0.00020547,2]
[336554824,1724952654908,-500.0,0.00020547,2]
[336554826,1724952654917,-1397.11,0.00020547,2]
[336554828,1724952654927,-500.0,0.00020547,2]
[336554830,1724952654937,-1150.01,0.00020547,2]
[336554832,1724952654946,-500.0,0.00020547,2]
[336554834,1724952654956,-328.2,0.00020547,2]
[336554836,1724952654966,-434.68020011,0.00020547,2]
[336554838,1724952654976,-926.01,0.00020547,2]
[336554840,1724952654986,-500.0,0.00020547,2]
[336554842,1724952654996,-500.0,0.00020547,2]
[336554844,1724952655006,-446.24845347,0.00020547,2]
[336554846,1724952655017,-187.59,0.00020547,2]
[336554848,1724952655027,-500.0,0.00020547,2]
[336554851,1724952655038,-3752.69,0.00020547,2]
[336554852,1724952655049,-500.0,0.00020547,2]
[336554854,1724952655058,-500.0,0.00020547,2]
[336554856,1724952655068,-1226.84,0.00020547,2]
[336554858,1724952655077,-459.92362854,0.00020547,2]
[336554860,1724952655087,-500.0,0.00020547,2]
[336554862,1724952655096,-1379.94,0.00020547,2]
[336554864,1724952655107,-500.0,0.00020547,2]
[336554866,1724952655116,-500.0,0.00020547,2]
[336554868,1724952655126,-500.0,0.00020547,2]
[336554870,1724952655136,-500.0,0.00020547,2]
[336554872,1724952655146,-500.0,0.00020547,2]
[336554874,1724952655156,-1041.47,0.00020547,2]
[336554876,1724952655166,-500.0,0.00020547,2]
[336554878,1724952655176,-537.1,0.00020547,2]
[336554880,1724952655185,-941.03,0.00020547,2]
[336554882,1724952655195,-1419.83385927,0.00020547,2]
[336554885,1724952655215,-394.28614073,0.00020547,2]
[336554887,1724952655224,-1236.89,0.00020547,2]
[336554889,1724952655236,-500.0,0.00020547,2]
[336554891,1724952655246,-500.0,0.00020547,2]
[336554893,1724952655255,-500.0,0.00020547,2]
[336554895,1724952655266,-179.72202861,0.00020547,2]
[336554897,1724952655277,-500.0,0.00020547,2]
[336554899,1724952655287,-500.0,0.00020547,2]
[336554901,1724952655297,-500.0,0.00020547,2]
[336554904,1724952655309,-974.98,0.00020547,2]
[336554906,1724952655321,-151.0,0.00020547,2]
[336554908,1724952655332,-500.0,0.00020547,2]
[336554910,1724952655343,-500.0,0.00020547,2]
[336554912,1724952655355,-242.74873798,0.00020547,2]
[336554915,1724952655366,-500.0,0.00020547,2]
[336554917,1724952655376,-500.0,0.00020547,2]
[336554919,1724952655387,-500.0,0.00020547,2]
[336554921,1724952655398,-500.0,0.00020547,2]
[336554923,1724952655408,-151.0,0.00020547,2]
[336554925,1724952655419,-500.0,0.00020547,2]
[336554927,1724952655430,-524.17,0.00020547,2]
[336554929,1724952655440,-500.0,0.00020547,2]
[336554931,1724952655449,-507.19,0.00020547,2]
[336554933,1724952655459,-500.0,0.00020547,2]
[336554935,1724952655469,-500.0,0.00020547,2]
[336554937,1724952655478,-349.9,0.00020547,2]
[336554939,1724952655488,-500.0,0.00020547,2]
[336554941,1724952655498,-1015.18,0.00020547,2]
[336554943,1724952655508,-324.49438776,0.00020547,2]
[336554946,1724952655518,-500.0,0.00020547,2]
[336554948,1724952655528,-2068.23,0.00020547,2]
[336554950,1724952655538,-17466.73,0.00020547,2]
[336554952,1724952655549,-500.0,0.00020547,2]
[336554954,1724952655558,-598.75,0.00020547,2]
[336554956,1724952655570,-500.0,0.00020547,2]
[336554958,1724952655583,-500.0,0.00020547,2]
[336554960,1724952655593,-500.0,0.00020547,2]
[336554962,1724952655605,-500.0,0.00020547,2]
[336554964,1724952655615,-500.0,0.00020547,2]
[336554966,1724952655624,-990.14,0.00020547,2]
[336554968,1724952655634,-500.0,0.00020547,2]
[336554970,1724952655645,-500.0,0.00020547,2]
[336554972,1724952655655,-500.0,0.00020547,2]
[336554974,1724952655665,-500.0,0.00020547,2]
[336554976,1724952655675,-500.0,0.00020547,2]
[336554978,1724952655685,-500.0,0.00020547,2]
[336554980,1724952655695,-500.0,0.00020547,2]
[336554982,1724952655705,-2201.12,0.00020547,2]
[336554993,1724952655714,-246.011452,0.00020547,2]
[336554996,1724952655812,-207.8243323,0.00020548,2]
[336554998,1724952655827,-153.0,0.00020548,2]
[336555000,1724952655838,-207.8243323,0.00020548,2]
[336555002,1724952655848,-207.6898979,0.00020548,2]
[336555004,1724952655862,-302.33493269,0.000206,2]
[336555006,1724952655872,-302.30477158,0.000206,2]
[336555007,1724952655882,-150.112233,0.000207,2]
[336555008,1724952655893,-237.134999,0.00020707,2]
[336555009,1724952655903,-2242.48986577,0.00020727,2]
[336555010,1724952655912,-600.58928121,0.00020728,2]
[336555011,1724952655921,-302.33493269,0.000208,2]
[336555012,1724952655930,-302.30477158,0.000208,2]
[336555013,1724952655940,-155.0,0.0002081,4]
[336555014,1724952655950,-250.0,0.00020821,2]
[336555015,1724952655960,-691.49,0.00020821,2]
[336555016,1724952655970,-1084.28,0.00020821,2]
[336555017,1724952655980,-500.0,0.00020821,2]
[336555019,1724952655991,-524.2,0.00020821,2]
[336555021,1724952656002,-636.83,0.00020821,2]
[336555023,1724952656012,-257.138475,0.00020821,2]
[336555025,1724952656022,-257.138475,0.00020821,2]
[336555027,1724952656032,-500.0,0.00020821,2]
[336555029,1724952656042,-500.0,0.00020821,2]
[336555031,1724952656053,-500.0,0.00020821,2]
[336555034,1724952656063,-500.0,0.00020821,2]
[336555036,1724952656073,-500.0,0.00020821,2]
[336555038,1724952656084,-500.0,0.00020821,2]
[336555040,1724952656094,-151.0,0.00020821,2]
[336555042,1724952656105,-500.0,0.00020821,2]
[336555044,1724952656115,-500.0,0.00020821,2]
[336555046,1724952656124,-6827.52,0.00020821,2]
[336555048,1724952656134,-500.0,0.00020821,2]
[336555050,1724952656144,-1197.44,0.00020821,2]
[336555052,1724952656153,-1850.92,0.00020821,2]
[336555054,1724952656164,-2427.73,0.00020821,2]
[336555056,1724952656174,-1397.11,0.00020821,2]
[336555058,1724952656184,-500.0,0.00020821,2]
[336555060,1724952656194,-500.0,0.00020821,2]
[336555062,1724952656204,-1150.01,0.00020821,2]
[336555064,1724952656214,-500.0,0.00020821,2]
[336555066,1724952656226,-926.01,0.00020821,2]
[336555068,1724952656236,-261.6,0.00020821,2]
[336555070,1724952656247,-277.45589,0.00020821,2]
[336555073,1724952656258,-500.0,0.00020821,2]
[336555075,1724952656269,-277.45589,0.00020821,2]
[336555077,1724952656279,-500.0,0.00020821,2]